bitfinex/quotes_SOLUSD_20240604
["timestamp","ask_amount","ask_price","bid_price","bid_amount"]
[1717475749420,6.91,166.98,166.95,0.34]
[1717475749915,21.91,167.0,166.96,2.2159]
[1717475750905,15.0,167.0,166.96,2.2159]
[1717475751118,15.0,167.0,166.97,0.34]
[1717475751423,21.91,167.0,166.97,0.34]
[1717475752917,15.0,167.0,166.97,0.34]
[1717475753432,21.91,167.0,166.97,0.34]
[1717475756242,21.91,167.0,166.97,2.5559]
[1717475757124,21.91,167.0,166.97,0.34]
[1717475759313,6.91,166.99,166.97,0.34]
[1717475760219,6.91,166.99,166.96,0.34]
[1717475761528,6.91,166.99,166.96,2.556]
[1717475761730,15.0,167.0,166.96,2.556]
[1717475762032,6.91,166.99,166.96,2.556]
[1717475766141,6.91,166.99,166.97,2.2159]
[1717475766318,21.91,167.0,166.97,2.2159]
[1717475767036,15.0,167.0,166.97,2.2159]
[1717475767241,21.91,167.0,166.98,2.5558]
[1717475767420,15.0,167.0,166.98,2.5558]
[1717475767923,15.0,167.0,166.98,0.34]
[1717475768333,21.91,167.0,166.98,0.34]
[1717475768955,15.0,167.0,166.98,0.34]
[1717475769237,15.0,167.0,166.96,17.5500063]
[1717475769419,15.0,167.0,166.97,0.34]
[1717475770731,15.0,167.0,166.97,8.9286063]
[1717475771722,15.0,167.0,166.96,11.1446063]
[1717475774246,15.0,167.0,166.97,8.9286063]
[1717475775750,15.0,167.0,166.96,11.1446063]
[1717475776437,15.0,167.0,166.97,0.34]
[1717475777552,15.0,167.0,166.97,9.2686063]
[1717475779851,15.0,167.0,166.97,0.34]
[1717475780148,17.2155,167.0,166.95,2.2162]
[1717475780350,6.91,166.97,166.96,8.93065912]
[1717475780825,6.91,166.97,166.95,8.93065912]
[1717475781248,6.91,166.97,166.94,8.93065912]
[1717475781447,6.91,166.97,166.94,11.14695912]
[1717475782344,6.91,166.97,166.95,8.93065912]
[1717475782749,6.91,166.98,166.95,8.93065912]
[1717475783136,6.91,166.98,166.95,11.14685912]
[1717475784132,15.0,167.0,166.97,2.2158]
[1717475784333,21.91,167.0,166.97,2.2158]
[1717475784662,21.91,167.0,166.96,11.48665912]
[1717475784838,15.0,167.0,166.96,131.48665912]
[1717475785160,21.91,167.0,166.96,131.48665912]
[1717475785363,21.91,167.0,166.97,8.93065912]
[1717475785658,21.91,167.0,166.98,0.34]
[1717475787161,15.0,167.0,166.98,0.34]
[1717475787359,21.91,167.0,166.98,0.34]
[1717475789069,21.91,167.0,166.98,9.27065912]
[1717475789237,15.0,167.0,166.98,0.34]
[1717475789438,21.91,167.0,166.98,0.34]
[1717475789939,21.91,167.0,166.98,9.27065912]
[1717475790359,21.91,167.0,166.98,0.34]
[1717475790849,21.91,167.0,166.98,9.27065912]
[1717475791052,21.91,167.0,166.98,0.34]
[1717475791490,21.91,167.0,166.98,9.27065912]
[1717475792563,15.0,167.0,166.98,9.27065912]
[1717475794169,15.0,167.0,166.98,129.27065912]
[1717475794343,15.0,167.0,166.99,51.02575912]
[1717475794673,15.0,167.0,166.99,44.6508]
[1717475794867,15.0,167.0,166.99,45.57513945]
[1717475795375,15.0,167.0,166.99,44.6508]
[1717475799278,15.0,167.0,166.99,38.5057]
[1717475804281,15.0,167.0,166.99,2.5557]
[1717475805264,21.91,167.0,166.99,2.5557]
[1717475805469,15.0,167.0,166.99,2.5557]
[1717475805652,21.91,167.0,166.99,2.5557]
[1717475805850,21.91,167.0,166.99,0.17]
[1717475806052,21.91,167.0,166.96,44.85784872]
[1717475806053,21.91,167.0,166.97,2.2158]
[1717475806261,15.0,167.0,166.98,0.17]
[1717475806448,6.91,166.99,166.98,0.17]
[1717475807347,6.91,166.99,166.98,0.34]
[1717475807555,6.91,166.99,166.98,2.2158]
[1717475807752,21.91,167.0,166.98,2.5558]
[1717475809571,21.91,167.0,166.99,2.2157]
[1717475811418,15.0,167.0,166.99,2.5557]
[1717475814209,15.0,167.0,166.99,11.48354872]
[1717475814524,15.0,167.0,166.99,47.41354872]
[1717475817004,15.0,167.0,166.99,53.81564872]
[1717475818991,15.0,167.0,166.99,44.8878]
[1717475819213,15.0,167.0,166.99,47.41275604]
[1717475820493,15.0,167.0,166.99,38.4857]
[1717475821096,15.0,167.0,166.99,47.41275604]
[1717475821813,15.0,167.0,166.99,38.4857]
[1717475822407,15.0,167.0,166.99,44.6035]
[1717475822722,15.0,167.0,166.99,57.96195604]
[1717475822926,15.0,167.0,166.99,51.84415604]
[1717475823101,15.0,167.0,166.99,42.9171]
[1717475823295,15.0,167.0,166.99,47.41275604]
[1717475823507,15.0,167.0,166.99,38.4857]
[1717475828123,15.0,167.0,166.99,47.41260293]
[1717475831327,15.0,167.0,166.99,38.4857]
[1717475831536,15.0,167.0,166.99,47.41181834]
[1717475834634,15.0,167.0,166.99,11.14181834]
[1717475835012,15.0,167.0,166.99,122.2157]
[1717475836331,15.0,167.0,166.99,122.5557]
[1717475836530,15.0,167.0,166.99,164.4874]
[1717475837110,15.0,167.0,166.99,168.9188]
[1717475837337,15.0,167.0,166.99,162.9171]
[1717475839035,15.0,167.0,166.99,158.4857]
[1717475849250,15.0,167.0,166.99,38.4857]
[1717475849447,15.0,167.0,166.99,2.5557]
[1717475850756,15.0,167.0,166.99,122.5557]
[1717475854541,15.0,167.0,166.99,158.4857]
[1717475870860,15.0,167.0,166.99,2.5557]
[1717475883493,15.0,167.0,166.96,11.0802]
[1717475883663,6.91,166.99,166.95,156.94610078]
[1717475883867,15.0,167.0,166.95,156.94610078]
[1717475883868,6.91,166.98,166.97,2.2158]
[1717475885183,6.91,166.98,166.97,2.5558]
[1717475885393,6.91,166.99,166.98,2.2158]
[1717475885575,6.91,166.99,166.97,2.2159]
[1717475885775,6.91,166.98,166.97,2.2159]
[1717475886298,15.0,167.0,166.98,2.2157]
[1717475886513,6.91,166.99,166.98,2.2157]
[1717475889598,15.0,167.0,166.98,2.2157]
[1717475889908,6.91,166.99,166.98,2.3857]
[1717475890080,6.91,166.99,166.98,2.5557]
[1717475890278,21.91,167.0,166.98,2.5557]
[1717475890778,21.91,167.0,166.99,0.34]
[1717475892902,21.91,167.0,166.98,0.17]
[1717475893087,6.91,166.99,166.98,0.34]
[1717475895105,15.0,167.0,166.98,0.34]
[1717475895288,21.91,167.0,166.99,2.2157]
[1717475895482,21.91,167.0,166.99,2.3857]
[1717475895690,21.91,167.0,166.99,0.34]
[1717475895896,21.91,167.0,166.99,0.14]
[1717475896809,15.0,167.0,166.99,0.14]
[1717475898191,15.0,167.0,166.99,0.31]
[1717475901003,15.0,167.0,166.98,0.34]
[1717475901188,15.0,167.0,166.98,2.5557]
[1717475903627,15.0,167.0,166.98,0.34]
[1717475904906,15.0,167.0,166.98,2.5558]
[1717475910908,15.0,167.0,166.99,165.50089026]
[1717475911103,15.0,167.0,166.99,38.3157]
[1717475911306,15.0,167.0,166.99,38.4857]
[1717475911820,15.0,167.0,166.99,42.9171]
[1717475912409,15.0,167.0,166.99,36.27]
[1717475912719,21.91,167.0,166.99,2.5557]
[1717475912919,15.0,167.0,166.99,0.34]
[1717475913124,21.91,167.0,166.98,2.2157]
[1717475913331,6.91,166.99,166.98,2.2157]
[1717475913498,6.91,166.99,166.98,2.5557]
[1717475914294,6.91,166.99,166.98,0.34]
[1717475915219,15.0,167.0,166.98,2.5558]
[1717475915523,6.91,166.99,166.98,2.5558]
[1717475915732,6.91,166.99,166.98,0.34]
[1717475916228,6.91,166.99,166.98,2.5558]
[1717475917630,6.91,166.99,166.98,0.34]
[1717475919328,6.91,166.99,166.98,2.5558]
[1717475920515,15.0,167.0,166.98,2.5557]
[1717475920723,21.91,167.0,166.99,0.34]
[1717475923827,15.0,167.0,166.99,2.5557]
[1717475924334,15.0,167.0,166.99,0.34]
[1717475926018,15.0,167.0,166.97,2.2159]
[1717475926220,6.91,166.98,166.97,2.2159]
[1717475927707,6.91,166.98,166.97,2.5559]
[1717475928412,6.91,166.99,166.97,2.5559]
[1717475928611,6.91,166.99,166.98,0.34]
[1717475930852,6.91,166.99,166.98,2.5558]
[1717475931716,6.91,166.99,166.98,0.34]
[1717475933645,6.91,166.99,166.98,2.5558]
[1717475937029,21.91,167.0,166.98,2.5558]
[1717475937447,15.0,167.0,166.98,2.5558]
[1717475938431,21.91,167.0,166.98,2.5558]
[1717475942368,15.0,167.0,166.99,2.2157]
[1717475942662,15.0,167.0,166.99,2.5557]
[1717475943634,15.0,167.0,166.99,0.34]
[1717475958480,15.0,167.0,166.99,2.5557]
[1717475974583,15.0,167.0,166.99,42.9171]
[1717475978792,15.0,167.0,166.99,38.4857]
[1717475980626,15.0,167.0,166.99,38.1457]
[1717475980824,21.91,167.0,166.99,38.1457]
[1717475981817,15.0,167.0,166.99,38.1457]
[1717475982018,15.0,167.0,166.99,38.4857]
[1717475985504,15.0,167.0,166.99,42.9171]
[1717475986743,15.0,167.0,166.99,38.4857]
[1717476001136,15.0,167.0,166.99,44.803]
[1717476001322,15.0,167.0,166.99,49.2344]
[1717476004137,15.0,167.0,166.99,42.9171]
[1717476004331,15.0,167.0,166.99,38.4857]
[1717476013747,15.0,167.0,166.99,42.9171]
[1717476023140,15.0,167.0,166.99,58.427]
[1717476024851,15.0,167.0,166.99,59.34938401]
[1717476025331,15.0,167.0,166.99,58.427]
[1717476034532,15.0,167.0,166.99,38.1457]
[1717476034733,15.0,167.0,166.99,47.08191727]
[1717476035857,15.0,167.0,166.99,47.25191727]
[1717476036166,15.0,167.0,166.99,47.42191727]
[1717476039849,15.0,167.0,166.99,38.4857]
[1717476040050,15.0,167.0,166.99,47.42436549]
[1717476041149,15.0,167.0,166.99,38.4857]
[1717476042267,15.0,167.0,166.99,47.42464495]
[1717476042566,15.0,167.0,166.99,51.85604495]
[1717476042769,15.0,167.0,166.99,49.5642]
[1717476045267,15.0,167.0,166.99,42.7471]
[1717476047052,15.0,167.0,166.99,42.9171]
[1717476051379,15.0,167.0,166.99,49.5642]
[1717476056070,15.0,167.0,166.99,58.427]
[1717476071299,15.0,167.0,166.99,59.34964348]
[1717476082323,15.0,167.0,166.99,43.49974348]
[1717476082615,15.0,167.0,166.99,42.5771]
[1717476084405,15.0,167.0,166.99,42.9171]
[1717476088798,15.0,167.0,166.99,43.83951383]
[1717476089295,15.0,167.0,166.99,42.9171]
[1717476097120,15.0,167.0,166.99,43.83881377]
[1717476098023,15.0,167.0,166.99,42.9171]
[1717476098617,10.0,167.0,166.99,42.9171]
[1717476098911,10.0,167.0,166.99,43.83878367]
[1717476099908,10.0,167.0,166.99,42.9171]
[1717476103808,10.0,167.0,166.99,43.83884475]
[1717476105414,10.0,167.0,166.99,42.9171]
[1717476105624,10.0,167.0,166.99,38.3157]
[1717476107016,10.0,167.0,166.99,38.4857]
[1717476112241,10.0,167.0,166.99,38.3157]
[1717476113329,10.0,167.0,166.99,47.25674836]
[1717476114831,10.0,167.0,166.99,47.257226]
[1717476119425,10.0,167.0,166.99,47.087226]
[1717476119625,16.91,167.02,166.99,47.087226]
[1717476119814,16.91,167.02,166.99,38.1457]
[1717476120742,10.0,167.02,166.99,47.087226]
[1717476120915,16.91,167.02,167.0,2.2155]
[1717476123431,10.0,167.02,167.0,2.2155]
[1717476124831,10.0,167.02,166.99,47.087126]
[1717476125335,16.91,167.02,166.99,38.1456]
[1717476125543,16.91,167.02,166.99,2.2156]
[1717476127562,16.91,167.02,166.99,11.15821105]
[1717476128657,6.91,167.0,166.98,11.15841105]
[1717476128835,6.91,167.0,166.98,2.2158]
[1717476129634,10.0,167.02,166.98,2.2158]
[1717476129834,16.3419,167.02,166.98,2.2158]
[1717476130333,20.0,167.01,166.98,2.2158]
[1717476130652,26.647,167.01,166.97,2.2159]
[1717476132045,28.8624,167.01,166.96,2.216]
[1717476132249,26.647,167.01,166.96,2.216]
[1717476132450,26.647,167.01,166.97,2.2159]
[1717476135754,26.647,167.01,166.96,2.216]
[1717476136353,28.8624,167.01,166.96,2.216]
[1717476136553,6.2382,167.0,166.96,2.216]
[1717476136946,8.4538,167.0,166.93,164.86261105]
[1717476137140,8.4538,167.0,166.95,2.2161]
[1717476137340,20.0,166.99,166.95,2.2161]
[1717476137854,28.3573,166.99,166.94,2.2163]
[1717476138158,26.1416,166.99,166.94,2.2163]
[1717476138565,26.1416,166.99,166.95,2.2162]
[1717476140045,20.0,166.99,166.96,2.2159]
[1717476140243,20.0,166.98,166.96,2.216]
[1717476140565,6.91,167.01,166.96,2.216]
[1717476140872,26.91,167.0,166.96,2.216]
[1717476143075,29.1255,167.0,166.95,158.1361]
[1717476143365,20.0,167.0,166.96,2.216]
[1717476143576,9.1254,167.01,166.96,2.216]
[1717476143748,20.0,167.0,166.96,2.216]
[1717476143942,2.2154,167.01,166.96,2.216]
[1717476144148,22.2154,167.01,166.96,2.216]
[1717476144383,2.2154,167.01,166.95,158.1361]
[1717476144571,22.2154,167.01,166.95,158.1361]
[1717476145479,2.2155,167.0,166.95,158.1361]
[1717476146977,2.2155,167.0,166.95,2.2161]
[1717476147971,2.2157,166.99,166.94,38.3063]
[1717476148214,2.2156,167.0,166.94,38.1363]
[1717476148659,2.2156,167.0,166.95,2.2162]
[1717476152886,9.1256,167.0,166.95,2.2162]
[1717476153388,20.0,166.99,166.95,2.2162]
[1717476154766,26.91,166.99,166.95,2.2162]
[1717476158298,20.0,166.99,166.95,2.2162]
[1717476158590,26.91,166.99,166.95,2.2162]
[1717476161083,20.0,166.99,166.95,2.2162]
[1717476161282,26.91,166.99,166.95,2.2162]
[1717476162902,29.1257,166.99,166.95,2.2162]
[1717476163684,29.1257,166.99,166.94,38.1363]
[1717476164578,6.91,166.98,166.94,38.1363]
[1717476164798,22.2157,166.99,166.94,38.1363]
[1717476164799,20.0,166.99,166.95,2.2162]
[1717476165006,6.91,166.98,166.95,2.2162]
[1717476165304,26.91,166.99,166.95,2.2162]
[1717476166779,20.0,166.99,166.95,2.2162]
[1717476167506,20.0,166.99,166.96,2.216]
[1717476168195,20.0,166.99,166.95,137.37081105]
[1717476169299,20.0,166.99,166.95,17.37081105]
[1717476170889,20.0,166.99,166.95,17.37867006]
[1717476172378,20.0,166.99,166.96,8.95047006]
[1717476172581,26.91,166.99,166.95,17.37867006]
[1717476173309,26.91,166.99,166.96,8.95047006]
[1717476174418,20.0,166.99,166.96,11.16647006]
[1717476176416,20.0,166.99,166.97,8.95047006]
[1717476181718,20.0,166.99,166.97,8.9489155]
[1717476182831,20.0,166.99,166.97,8.9489121]
[1717476183592,20.0,166.99,166.97,8.94931582]
[1717476185301,20.0,166.99,166.96,11.16531582]
[1717476188361,20.0,166.99,166.97,8.94931582]
[1717476188944,20.0,166.99,166.96,11.16531582]
[1717476190120,20.0,166.99,166.97,8.94931582]
[1717476190942,20.0,166.99,166.96,2.216]
[1717476190943,20.0,166.99,166.96,11.16531582]
[1717476191747,20.0,166.99,166.97,8.94931582]
[1717476192546,20.0,166.99,166.96,11.16531582]
[1717476193147,20.0,166.99,166.96,8.94931582]
[1717476193327,20.0,166.99,166.97,8.94931582]
[1717476193844,20.0,166.99,166.96,8.94931582]
[1717476195026,26.91,166.99,166.96,8.94931582]
[1717476196134,26.91,166.99,166.96,11.16531582]
[1717476197051,26.91,166.99,166.96,8.94931582]
[1717476200448,20.0,166.99,166.96,8.94931582]
[1717476200856,20.0,166.99,166.97,8.94931582]
[1717476201360,20.0,166.99,166.96,11.16531582]
[1717476204479,20.0,166.99,166.96,8.94931582]
[1717476204750,26.91,166.99,166.96,8.94931582]
[1717476205458,26.91,166.99,166.97,8.94931582]
[1717476205753,26.91,166.99,166.96,8.94931582]
[1717476206058,6.91,166.99,166.96,8.94931582]
[1717476207761,6.91,166.99,166.96,11.16531582]
[1717476210560,6.91,166.99,166.97,8.94931582]
[1717476214164,6.91,166.99,166.97,8.94136677]
[1717476215763,6.91,166.99,166.96,2.216]
[1717476215971,6.91,166.99,166.97,8.94148134]
[1717476217558,10.0,167.0,166.97,8.94148134]
[1717476217747,20.0,166.99,166.97,8.94148134]
[1717476220770,20.0,166.99,166.96,8.94148134]
[1717476221373,20.0,166.99,166.97,8.94148134]
[1717476222150,0.53287823,166.98,166.97,8.94148134]
[1717476222378,0.53287823,166.98,166.96,8.94148134]
[1717476222555,29.1257,166.99,166.96,8.94148134]
[1717476223385,26.91,166.99,166.96,8.94148134]
[1717476223578,26.91,166.99,166.97,8.94148134]
[1717476225255,26.91,166.99,166.96,8.94148134]
[1717476227992,26.91,166.99,166.95,2.2162]
[1717476228172,26.91,166.99,166.96,8.94203626]
[1717476228372,26.91,166.99,166.97,8.94203626]
[1717476228886,26.91,166.99,166.97,8.94160782]
[1717476229063,29.1257,166.99,166.97,8.94160782]
[1717476229258,29.1257,166.99,166.96,8.94160782]
[1717476229681,29.1257,166.99,166.97,8.94160782]
[1717476230486,26.91,166.99,166.97,8.94160782]
[1717476232174,2.2158,166.98,166.97,8.94160782]
[1717476232375,29.1257,166.99,166.97,8.94160782]
[1717476233781,26.91,166.99,166.97,8.94160782]
[1717476237886,20.0,166.99,166.96,8.94160782]
[1717476238376,20.0,166.99,166.97,8.94160782]
[1717476241797,22.2157,166.99,166.97,8.94160782]
[1717476241976,20.0,166.99,166.97,8.94160782]
[1717476242893,0.53287823,166.98,166.97,8.94160782]
[1717476243995,22.2157,166.99,166.97,8.94160782]
[1717476244388,20.0,166.99,166.97,8.94160782]
[1717476245482,20.0,166.99,166.95,2.2162]
[1717476245799,0.53287823,166.98,166.96,8.94729632]
[1717476246499,20.0,166.99,166.96,8.94729632]
[1717476247101,0.53287823,166.98,166.96,8.94729632]
[1717476247488,20.0,166.99,166.96,8.94729632]
[1717476248198,20.0,166.99,166.95,2.2162]
[1717476248395,20.0,166.99,166.96,8.94833554]
[1717476254508,20.0,166.99,166.97,8.94833554]
[1717476256884,20.0,166.99,166.97,8.9487229]
[1717476257910,20.0,166.99,166.97,8.94840284]
[1717476258211,20.0,166.99,166.97,11.16430284]
[1717476259293,20.0,166.99,166.97,2.2159]
[1717476261310,20.0,166.99,166.98,8.94539261]
[1717476262510,20.0,166.99,166.97,2.2159]
[1717476263304,20.0,166.99,166.98,8.94539991]
[1717476265803,20.0,166.99,166.97,8.94539991]
[1717476266731,20.0,166.99,166.96,8.94539991]
[1717476268203,20.0,166.99,166.97,8.94539991]
[1717476268813,20.0,166.99,166.96,11.16139991]
[1717476269217,20.0,166.99,166.97,8.94539991]
[1717476272637,20.0,166.99,166.96,2.216]
[1717476272926,20.0,166.99,166.97,8.94734549]
[1717476282713,20.0,166.99,166.96,2.216]
[1717476282914,20.0,166.99,166.97,8.94693537]
[1717476283413,20.0,166.99,166.96,2.216]
[1717476283614,20.0,166.99,166.97,8.94743687]
[1717476302935,20.0,166.99,166.98,8.94743687]
[1717476305028,20.0,166.99,166.97,8.94743687]
[1717476307867,10.0,167.0,166.97,8.94743687]
[1717476308034,20.0,166.99,166.97,8.94743687]
[1717476308237,20.0,166.99,166.97,8.94290248]
[1717476312249,20.0,166.99,166.91,6.2886]
[1717476312250,2.216,166.97,166.95,8.94290248]
[1717476312453,2.216,166.97,166.96,8.94290248]
[1717476312454,9.1259,166.97,166.96,8.94290248]
[1717476312664,26.91,166.97,166.95,8.94290248]
[1717476312840,9.126,166.96,166.95,8.94290248]
[1717476313042,29.126,166.96,166.95,8.94290248]
[1717476313473,29.126,166.96,166.93,8.94290248]
[1717476313662,9.126,166.96,166.93,8.94290248]
[1717476313864,20.0,166.95,166.93,8.94290248]
[1717476314448,20.0,166.95,166.92,8.94290248]
[1717476315153,26.91,166.95,166.92,8.94290248]
[1717476315456,6.91,166.95,166.92,8.94290248]
[1717476316647,6.91,166.95,166.92,11.15950248]
[1717476317560,6.91,166.95,166.92,2.2166]
[1717476317735,6.91,166.95,166.92,11.15950248]
[1717476318240,6.91,166.95,166.92,2.2166]
[1717476318440,6.91,166.95,166.91,11.15960248]
[1717476318873,6.91,166.95,166.91,2.2167]
[1717476319072,6.91,166.95,166.92,2.2165]
[1717476319578,6.91,166.95,166.91,2.2166]
[1717476320361,6.91,166.95,166.9,8.94290248]
[1717476320362,7.44287823,166.94,166.9,11.15970248]
[1717476320761,6.91,166.94,166.9,11.15970248]
[1717476320985,6.91,166.94,166.91,2.2167]
[1717476321173,6.91,166.94,166.9,11.15970248]
[1717476321378,6.91,166.93,166.89,8.94290248]
[1717476321693,20.0,166.92,166.89,8.94290248]
[1717476321895,20.0,166.92,166.88,8.94290248]
[1717476322100,20.0,166.92,166.89,2.2169]
[1717476322273,20.0,166.92,166.88,8.94290248]
[1717476322467,0.53287823,166.91,166.88,8.94290248]
[1717476322685,6.91,166.9,166.87,8.94290248]
[1717476322896,6.91,166.9,166.87,2.2172]
[1717476323599,6.91,166.9,166.86,11.16020248]
[1717476323773,0.53287823,166.89,166.86,11.16020248]
[1717476324402,6.91,166.9,166.86,11.16020248]
[1717476324774,6.91,166.9,166.86,2.2173]
[1717476325200,6.91,166.9,166.87,2.2172]
[1717476325381,6.91,166.9,166.86,2.2173]
[1717476326102,6.91,166.9,166.87,2.2171]
[1717476326306,9.1269,166.9,166.84,2.2176]
[1717476326492,20.0,166.89,166.84,2.2176]
[1717476326676,20.0,166.89,166.85,2.2175]
[1717476327407,26.91,166.89,166.85,2.2175]
[1717476328581,26.91,166.89,166.84,2.2176]
[1717476329290,6.91,166.88,166.84,2.2176]
[1717476331408,6.91,166.86,166.81,8.94290248]
[1717476331706,29.1275,166.85,166.79,8.94290248]
[1717476331909,29.66037823,166.85,166.79,2.2183]
[1717476332080,6.91,166.84,166.79,2.2183]
[1717476332282,20.53287823,166.83,166.79,2.2183]
[1717476332503,0.53287823,166.82,166.8,2.2182]
[1717476333803,20.0,166.83,166.8,2.2182]
[1717476334297,20.0,166.83,166.79,2.2183]
[1717476334495,20.53287823,166.83,166.79,2.2183]
[1717476334703,9.1275,166.85,166.79,2.2183]
[1717476334899,6.4674,166.89,166.8,120.0]
[1717476335209,6.4674,166.89,166.84,2.2175]
[1717476335210,20.0,166.88,166.84,2.2175]
[1717476335409,13.3774,166.89,166.83,6.91]
[1717476335410,6.4674,166.89,166.85,2.2175]
[1717476335613,6.91,166.9,166.85,2.2175]
[1717476335804,9.1269,166.9,166.84,2.2176]
[1717476336209,9.1269,166.9,166.85,2.2175]
[1717476336825,20.0,166.89,166.85,2.2175]
[1717476337610,20.0,166.89,166.84,2.2176]
[1717476340230,20.0,166.89,166.85,2.2175]
[1717476340804,26.91,166.89,166.84,2.2176]
[1717476341209,26.91,166.89,166.85,2.2174]
[1717476341921,26.91,166.89,166.84,2.2176]
[1717476343206,29.127,166.89,166.84,2.2176]
[1717476343409,6.91,166.88,166.84,2.2176]
[1717476344233,20.0,166.87,166.83,2.2177]
[1717476344598,6.91,166.88,166.83,2.2177]
[1717476344822,20.0,166.87,166.83,2.2177]
[1717476348015,2.217,166.89,166.83,2.2177]
[1717476348334,9.127,166.89,166.83,2.2177]
[1717476348827,20.0,166.88,166.84,2.2176]
[1717476349031,20.0,166.88,166.83,2.2177]
[1717476351829,22.2172,166.88,166.83,2.2177]
[1717476356021,22.2172,166.88,166.82,2.2178]
[1717476356218,22.2172,166.88,166.82,9.1278]
[1717476356517,2.2168,166.91,166.85,2.2174]
[1717476356723,2.2169,166.9,166.84,2.2176]
[1717476356929,9.1269,166.9,166.84,2.2176]
[1717476357128,2.217,166.89,166.84,2.2176]
[1717476357331,2.2171,166.88,166.83,2.2177]
[1717476358337,22.2171,166.88,166.83,2.2177]
[1717476358629,29.1271,166.88,166.83,2.2177]
[1717476359049,29.1271,166.88,166.82,2.2179]
[1717476359419,2.2173,166.87,166.82,2.2179]
[1717476359628,9.1273,166.87,166.82,2.2179]
[1717476360027,2.2175,166.86,166.81,8.96490371]
[1717476360227,9.66047823,166.85,166.81,8.96490371]
[1717476360415,20.0,166.84,166.8,2.2182]
[1717476360722,20.53287823,166.84,166.8,2.2182]
[1717476361641,20.0,166.84,166.8,2.2182]
[1717476362021,0.53287823,166.83,166.8,2.2182]
[1717476363538,26.91,166.84,166.8,2.2182]
[1717476364239,26.91,166.84,166.79,2.2182]
[1717476364431,27.44287823,166.84,166.79,11.18310371]
[1717476364819,27.44287823,166.84,166.8,2.2182]
[1717476365018,26.91,166.84,166.8,2.2182]
[1717476365544,0.53287823,166.83,166.8,2.2182]
[1717476366446,0.53287823,166.83,166.79,11.18320371]
[1717476366946,26.91,166.84,166.8,2.2181]
[1717476368325,20.0,166.84,166.8,2.2181]
[1717476368526,6.91,166.85,166.8,2.2181]
[1717476368736,20.0,166.84,166.8,2.2181]
[1717476368943,20.0,166.84,166.81,2.218]
[1717476369125,20.0,166.84,166.79,15.08000371]
[1717476369326,6.91,166.86,166.82,2.2179]
[1717476369640,20.0,166.85,166.82,2.2179]
[1717476369831,20.0,166.85,166.81,2.218]
[1717476370621,20.0,166.85,166.8,11.18300371]
[1717476370839,26.91,166.85,166.8,11.18300371]
[1717476372523,6.91,166.84,166.8,11.18300371]
[1717476373845,26.91,166.85,166.81,2.218]
[1717476374037,26.91,166.85,166.8,11.18300371]
[1717476374238,26.91,166.85,166.8,2.2181]
[1717476374544,26.91,166.85,166.8,11.18300371]
[1717476375152,29.1275,166.85,166.8,8.96490371]
[1717476375658,6.91,166.84,166.8,8.96490371]